Cogmind - Beta 10.2 @@@ ROGUE MODE // 2020.12.29 @ 17:41:48 Player: Sandwich Result: Self-destructed Performance ------------- Evolutions (2) 1000 Regions Visited (5) 1000 Robots Destroyed (19) 95 Value Destroyed (465) 465 Prototype IDs (23) 460 Alien Tech Used (0) 0 Bonus (300) 300 TOTAL SCORE: 3320 Bonus ------- Aligned with FarCom 300 Cogmind --------- Core Integrity 517/550 Matter 280/300 Energy 265/265 System Corruption 0% Temperature Cool (0) Movement Treading (160) Location -8/Materials Parts ------- > --- POWER (1) -------- Improved Ion Engine > --- PROPULSION (3) --- Light Treads Light Treads Light Treads > --- UTILITY (4) ------ Improved Heat Sink Small Storage Unit Hardened Medium Armor Plating Hardened Medium Armor Plating > --- WEAPON (3) ------- Katana Katana Katana > --- INVENTORY (6) ---- Hardened Medium Armor Plating AWS/Autocannon Katana Katana Peak State ------------ > --- POWER ------------ Improved Ion Engine > --- PROPULSION ------- Light Treads Light Treads Light Treads > --- UTILITY ---------- Improved Heat Sink Small Storage Unit Hardened Medium Armor Plating Hardened Medium Armor Plating > --- WEAPON ----------- Katana Katana Katana > --- INVENTORY -------- Improved Medium Laser AWS/Autocannon Rocket Launcher Katana [Rating: 27] Favorites ----------- Power Light Ion Engine Engine Light Ion Engine Propulsion Light Treads Treads Light Treads Wheel Compact Wheel Utility Small Storage Unit Device Improved Heat Sink Storage Small Storage Unit Protection Light Armor Plating Weapon Small Laser Energy Gun Small Laser Ballistic Gun Light Assault Rifle Launcher Rocket Launcher Slashing Weapon Katana Build | -11 -10 -10 -10 -9 -8 ------- Run | Scr Mat Min Exi Min Mat Slots Evolved 4 | . . . . . 4 Power . | . . . . . . Propulsion 1 | . . . . . 1 Utility 2 | . . . . . 2 Weapon 1 | . . . . . 1 Parts Attached 30 | 6 6 3 2 1 12 Power 4 | 1 1 1 . . 1 Engine 4 | 1 1 1 . . 1 Core . | . . . . . . Reactor . | . . . . . . Propulsion 9 | 2 1 1 2 . 3 Treads 8 | 1 1 1 2 . 3 Leg . | . . . . . . Wheel 1 | 1 . . . . . Hover . | . . . . . . Flight . | . . . . . . Utility 8 | 1 2 . . . 5 Device 1 | . 1 . . . . Storage 1 | 1 . . . . . Processor . | . . . . . . Hackware . | . . . . . . Protection 6 | . 1 . . . 5 Artifact . | . . . . . . Weapon 9 | 2 2 1 . 1 3 Energy Gun 2 | . 2 . . . . Energy Cannon . | . . . . . . Ballistic Gun 3 | 2 . 1 . . . Ballistic Cannon . | . . . . . . Launcher 1 | . . . . 1 . Special Weapon . | . . . . . . Impact Weapon . | . . . . . . Slashing Weapon 3 | . . . . . 3 Piercing Weapon . | . . . . . . Special Melee Weapon . | . . . . . . Unidentified Prototypes . | . . . . . . Parts Lost 4 | . . . . 3 1 Power 1 | . . . . . 1 Propulsion 1 | . . . . 1 . Utility . | . . . . . . Weapon 2 | . . . . 2 . Highest Loss Streak 3 | . . . . 3 1 Average Slot Usage (%) 95 | . 96 100 100 75 90 Engine 12 | . 14 14 14 14 8 Treads 24 | . 21 28 28 16 21 Wheel 1 | . 6 . . . . Device 11 | . 8 14 14 14 9 Storage 12 | . 14 14 14 14 9 Protection 4 | . 1 . . . 17 Energy Gun 13 | . 14 25 14 1 . Ballistic Gun 6 | . 13 2 14 2 . Launcher 1 | . . . . 12 1 Slashing Weapon 5 | . . . . . 23 Naked Turns . | . . . . . . Heaviest Build 34 | 11 14 12 10 12 34 Greatest Support 60 | 20 40 40 40 20 60 Greatest Overweight (x) . | . . . . . . Average Overweight (x) . | . . . . . . Largest Inventory Capacity 6 | 6 6 6 6 6 6 Average Capacity 5 | 5 6 6 6 6 6 Most Carried 6 | 4 6 6 6 6 6 Average Carried 5 | 1 5 5 5 5 5 Final Capacity 6 | 6 6 6 6 6 6 Final Carried 6 | 4 6 6 6 5 6 Class Distribution -------------------- 93% | Mutant 6% | Scavenger-Mutant Dominant Class ---------------- Mutant | -10/Materials Mutant | -10/Mines Mutant | -10/Exiles Mutant | -9/Mines Mutant | -8/Materials Resources | -11 -10 -10 -10 -9 -8 ----------- Run | Scr Mat Min Exi Min Mat Matter Collected 563 | 247 91 27 . 95 103 Remotely . | . . . . . . Salvage Created 498 | . 166 39 . 113 180 Parts 28 | . 8 4 . 6 10 Haulers Intercepted . | . . . . . . Recyclers Shooed . | . . . . . . Parts Field Recycled . | . . . . . . Retrieved Matter . | . . . . . . Parts Self-Destructed . | . . . . . . Prevented . | . . . . . . Kills | -11 -10 -10 -10 -9 -8 ------- Run | Scr Mat Min Exi Min Mat Combat Hostiles Destroyed 19 | . 6 3 . 6 4 Melee 4 | . . . . . 4 Guns 10 | . 6 3 . 1 . AOE 5 | . . . . 5 . Classes Destroyed 3 | . 2 . . . 1 Swarmer 10 | . 3 3 . 3 1 Grunt 6 | . 3 . . 3 . Sentry 3 | . . . . . 3 Best Kill Streak 6 | . 4 3 . 6 2 Combat Bots Only 6 | . 4 3 . 6 2 Max Kills in Single Turn 2 | . 2 1 . 2 1 Gunslinging 1 | . 1 . . . . Exploded 2 | . . . . 2 . Melee 1 | . . . . . 1 Uniques/NPCs Destroyed . | . . . . . . Combat | -11 -10 -10 -10 -9 -8 -------- Run | Scr Mat Min Exi Min Mat Damage Taken 984 | . 131 181 . 456 216 Core 90 | . 14 12 . 31 33 Absorbed by Shields . | . . . . . . Core Remaining (%) 88 | 100 . . . 77 . Volleys Fired 30 | . 10 8 . 12 . Largest 2 | . 2 2 . 2 . Hottest 80 | . 80 80 . 60 . Shots Fired 56 | . 20 16 . 20 . Gun 49 | . 20 16 . 13 . Cannon . | . . . . . . Launcher 7 | . . . . 7 . Special . | . . . . . . Kinetic 14 | . 6 . . 8 . Thermal 35 | . 14 16 . 5 . Explosive 7 | . . . . 7 . Electromagnetic . | . . . . . . Robot Hit Streak 12 | . 12 3 . 9 . Robot Miss Streak 3 | . 1 2 . 3 . Penetration Max . | . . . . . . Secondary Targets 2 | . 1 . . 1 . Max Gunslinging Chain 1 | . 1 . . 1 . Shots Hit Robots 51 | . 16 9 . 14 12 Core Hits 29 | . 10 3 . 12 4 Critical Hits . | . . . . . . Critical Kills . | . . . . . . Critical Parts Destroyed . | . . . . . . Melee Attacks 13 | . . . . . 13 Impact . | . . . . . . Slashing 13 | . . . . . 13 Piercing . | . . . . . . Sneak Attacks . | . . . . . . Combat Hostiles . | . . . . . . Follow-up Attacks 2 | . . . . . 2 Damage Inflicted 1087 | . 180 77 . 451 379 Guns 346 | . 180 77 . 89 . Cannons . | . . . . . . Explosions 362 | . . . . 362 . Melee 379 | . . . . . 379 Ramming . | . . . . . . Kinetic 95 | . 51 . . 44 . Thermal 251 | . 129 77 . 45 . Explosive 362 | . . . . 362 . Electromagnetic . | . . . . . . Impact . | . . . . . . Slashing 379 | . . . . . 379 Piercing . | . . . . . . Highest Corruption . | . . . . . . Average Corruption . | . . . . . . Corruption Purged . | . . . . . . Overload Shots . | . . . . . . Overflow Damage 14 | . . . . 4 10 Projectiles . | . . . . . . Explosions 4 | . . . . 4 . Melee 10 | . . . . . 10 Knockbacks . | . . . . . . Impact . | . . . . . . Kinetic . | . . . . . . Secondary . | . . . . . . Self-Inflicted Damage 74 | . . . . 74 . Shots 3 | . . . . 3 . Rammed . | . . . . . . Targets Rammed . | . . . . . . Kicked . | . . . . . . Crushed . | . . . . . . Highest Temperature 17 | . 2 . . 17 . Average Temperature 8 | . 2 . . 11 . Received Heat Transfer 282 | . 57 . . 162 63 Siege Activations . | . . . . . . Robots Corrupted . | . . . . . . Combat Hostiles . | . . . . . . Parts Fried . | . . . . . . Impact Corruptions . | . . . . . . Robots Melted . | . . . . . . Combat Hostiles . | . . . . . . Parts Melted 2 | . 1 . . 1 . Heat Transferred 575 | . 300 175 . 100 . Parts Sabotaged . | . . . . . . Parts Stolen . | . . . . . . Parts Stripped . | . . . . . . Power Chain Reactions . | . . . . . . Missiles Intercepted . | . . . . . . Alert | -11 -10 -10 -10 -9 -8 ------- Run | Scr Mat Min Exi Min Mat Peak Influence 202 | . 170 70 . 110 202 Initial 66 | . . 66 . . 42 Average 60 | . 64 57 . 90 60 Maximum Alert Level 1 | . . . . . 1 Low Security (%) 99 | 100 100 100 . 100 98 Level 1 . | . . . . . 1 Level 2 . | . . . . . . Level 3 . | . . . . . . Level 4 . | . . . . . . Level 5 . | . . . . . . High Security . | . . . . . . Max Security . | . . . . . . Squads Dispatched . | . . . . . . Investigation . | . . . . . . Extermination . | . . . . . . Reinforcement . | . . . . . . Assault . | . . . . . . Garrison . | . . . . . . Intercept . | . . . . . . Construction Impeded . | . . . . . . Haulers Reinforced . | . . . . . . Stealth | -11 -10 -10 -10 -9 -8 --------- Run | Scr Mat Min Exi Min Mat Distress Signals 1 | . 1 . . . . Communications Jammed . | . . . . . . Distress Signals . | . . . . . . Times Spotted 24 | . 8 3 . 6 7 Peak Tracking Total 5 | . 5 2 . 4 3 Tactical Retreats 2 | . 1 . . . 1 Traps | -11 -10 -10 -10 -9 -8 ------- Run | Scr Mat Min Exi Min Mat Traps Triggered . | . . . . . . Indirectly . | . . . . . . Trap Hack Attempts . | . . . . . . Triggered . | . . . . . . Disarmed . | . . . . . . Reprogrammed . | . . . . . . Reused . | . . . . . . Traps Extracted . | . . . . . . Installed . | . . . . . . Triggered . | . . . . . . Machines | -11 -10 -10 -10 -9 -8 ---------- Run | Scr Mat Min Exi Min Mat Machines Disabled . | . . . . . . Max in Single Turn . | . . . . . . Machines Sabotaged . | . . . . . . Garrisons Compromised . | . . . . . . Overloaded Fab Kills . | . . . . . . Fab Network Shutdowns . | . . . . . . Hacking | -11 -10 -10 -10 -9 -8 --------- Run | Scr Mat Min Exi Min Mat Machines Accessed 2 | . . . 1 . 1 Terminals 1 | . . . . . 1 Fabricators . | . . . . . . Repair Stations . | . . . . . . Recycling Units . | . . . . . . Scanalyzers . | . . . . . . Garrison Access . | . . . . . . Total Hacks 6 | . . . 1 . 5 Successful 3 | . . . 1 . 2 Failed 3 | . . . . . 3 Catastrophic . | . . . . . . Database Lockouts . | . . . . . . Manual 1 | . . . 1 . . Terminals 5 | . . . . . 5 Fabricators . | . . . . . . Repair Stations . | . . . . . . Recycling Units . | . . . . . . Scanalyzers . | . . . . . . Garrison Access . | . . . . . . Terminal Hacks 3 | . . . 1 . 2 Unreport Threat 2 | . . . . . 2 EX-Prototype ID Bank 1 | . . . 1 . . Fabricator Hacks . | . . . . . . Repair Station Hacks . | . . . . . . Recycling Unit Hacks . | . . . . . . Scanalyzer . | . . . . . . Garrison Access Hacks . | . . . . . . Unauthorized Hacks . | . . . . . . Terminals . | . . . . . . Fabricators . | . . . . . . Repair Stations . | . . . . . . Recycling Units . | . . . . . . Scanalyzers . | . . . . . . Garrison Access . | . . . . . . Data Cores Recovered . | . . . . . . Used . | . . . . . . Hacking Detections 1 | . . . . . 1 Full Trace Events . | . . . . . . Feedback Events . | . . . . . . Feedback Blocked . | . . . . . . Robot Schematics Acquired . | . . . . . . Robots Built . | . . . . . . Matter . | . . . . . . Time . | . . . . . . Total Robot Build Rating . | . . . . . . Part Schematics Acquired . | . . . . . . Parts Built . | . . . . . . Matter . | . . . . . . Time . | . . . . . . Total Part Build Rating . | . . . . . . Parts Repaired . | . . . . . . Time . | . . . . . . Parts Recycled . | . . . . . . Recycled Matter . | . . . . . . Retrieved Matter . | . . . . . . Retrieved Components . | . . . . . . Parts Scanalyzed . | . . . . . . Part Schematics Acquired . | . . . . . . Parts Damaged . | . . . . . . Bothacking | -11 -10 -10 -10 -9 -8 ------------ Run | Scr Mat Min Exi Min Mat Used RIF Installer . | . . . . . . Robots Hacked . | . . . . . . Non-combat . | . . . . . . Combat . | . . . . . . Robot Hacks Applied . | . . . . . . Relay Couplers Released . | . . . . . . Robots Rewired . | . . . . . . Allies Hacked . | . . . . . . Hacks Repelled . | . . . . . . Allies | -11 -10 -10 -10 -9 -8 -------- Run | Scr Mat Min Exi Min Mat Total Allies . | . . . . . . Largest Group . | . . . . . . Highest-Rated Group . | . . . . . . Highest-Rated Ally . | . . . . . . Total Orders . | . . . . . . Ally Attacks . | . . . . . . Total Damage . | . . . . . . Kills . | . . . . . . Allies Corrupted . | . . . . . . Allies Melted . | . . . . . . Intel | -11 -10 -10 -10 -9 -8 ------- Run | Scr Mat Min Exi Min Mat Robot Analysis Total . | . . . . . . Derelict Logs Recovered 1 | . . 1 . . . Drone Launches . | . . . . . . Drone Recoveries . | . . . . . . Exploration | -11 -10 -10 -10 -9 -8 ------------- Run | Scr Mat Min Exi Min Mat Turns Passed 1916 | 58 334 611 348 132 433 Spaces Moved 1072 | 44 189 355 215 55 214 Core 5 | 5 . . . . . Treads 930 | 6 85 355 215 55 214 Legs . | . . . . . . Wheels 137 | 33 104 . . . . Hover . | . . . . . . Flight . | . . . . . . Fastest Speed 50 | 50 100 160 160 160 160 Average Speed 151 | 102 126 160 160 160 160 Slowest Speed 160 | 160 160 160 160 160 160 Overloaded Moves . | . . . . . . Propulsion Burnouts . | . . . . . . Robots Hopped . | . . . . . . Cave-ins Triggered . | . . . . . . Exploration Rate (%) 33 | 5 36 60 60 20 17 Regions Visited 5 Branch Regions 3 Pre-discovered Areas 1 | . . 1 . . . Known Exits Taken . | . . . . . . Unknown Exits Taken 5 | 1 1 1 1 1 . Scrap Searched 1 | . . 1 . . . Spaces Dug . | . . . . . . Terrain Destroyed 50 | . . . . 50 . Melee . | . . . . . . Projectile . | . . . . . . AOE 50 | . . . . 50 . Terrain Rammed . | . . . . . . Walls Destroyed . | . . . . . . Machines Disabled . | . . . . . . Actions | -11 -10 -10 -10 -9 -8 --------- Run | Scr Mat Min Exi Min Mat Total 1289 | 53 264 383 220 81 288 Wait 110 | . 44 12 . 14 40 Move 1067 | 43 188 354 214 54 214 Hop . | . . . . . . Pick Up 19 | 4 8 2 1 . 4 Fast Attach 17 | 6 3 2 . . 6 Attach 3 | . . . . 1 2 Detach 1 | . . . . . 1 Swap 10 | . 3 1 2 . 4 Drop 21 | . 8 4 3 . 6 Fire 30 | . 10 8 . 12 . Melee 11 | . . . . . 11 Ram . | . . . . . . Kick . | . . . . . . Crush . | . . . . . . Escape Stasis . | . . . . . . Rewire . | . . . . . . Trap . | . . . . . . Miscellaneous . | . . . . . . Route ------- -11/Scrapyard -10/Materials -10/Mines -10/Exiles -9/Mines -8/Materials History --------- Turn | Location | Event 2 | -11/Scrapyard | Met Revision 17 37 | -11/Scrapyard | Discovered new exit (range 14) 59 | -11/Scrapyard | Entered Materials 305 | -10/Materials | Build established: Mutant 359 | -10/Materials | Discovered new exit (range 12) 393 | -10/Materials | Entered Mines 461 | -10/Mines | Learned location of Storage (-8) 518 | -10/Mines | Learned Materials stockpile data 812 | -10/Mines | Received a Rocket Launcher from a helpful Derelict 996 | -10/Mines | Deemed a non-threat by the Exiles lab entrance 998 | -10/Mines | Discovered new exit (range 5) 1004 | -10/Mines | Entered Exiles 1041 | -10/Exiles | Met 8R-AWN 1070 | -10/Exiles | Met EX-HEX 1126 | -10/Exiles | Met EX-BIN 1148 | -10/Exiles | Aligned with FarCom system 1150 | -10/Exiles | Given EX-Vault access code 1187 | -10/Exiles | Opened EX-Vault 1199 | -10/Exiles | Found AWS/Autocannon 1231 | -10/Exiles | Warned to stay clear of 0b10 Research branches 1279 | -10/Exiles | Met EX-DEC 1332 | -10/Exiles | Discovered new exit (range 14) 1352 | -10/Exiles | Left Exiles lab with AWS/Autocannon 1352 | -10/Exiles | Entered Mines 1361 | -9/Mines | Met a Derelict bent on vengeance 1405 | -9/Mines | Lost 3 parts (1n2w) 1481 | -9/Mines | Discovered new exit (range 3) 1484 | -9/Mines | Entered Materials 1484 | -8/Materials | Evolved 4 slots: Propulsion x1, Utility x2, Weapon x1 1917 | -8/Materials | Self-destructed Last Messages --------------- 01766_ Dropped Lgt. Treads. 01767_ Acquired 10 matter. 01779_ Dropped Lgt. Armor Plating. 01783_ Acquired 10 matter. 01815_ Destroyed Flight Unit. 01818_ Katana follow-up attack on S-10 Pest. 01818_ Destroyed Lgt. Ion Engine. 01824_ S-10 Pest destroyed. 01836_ Connecting with Terminal... 01836_ Current location identified: Materials >>Alert(Purge) Purged threat record, alert level lowered. >>Alert(Purge) Purged threat record, alert level lowered. 01886_ Dropped Lgt. Armor Plating. 01889_ Dropped Med. Armor Plating. 01892_ Dropped Rocket Launcher. 01893_ Acquired Hrd. Medium Armor Plating. 01913_ Dropped Prototype Energy Gun. 01913_ Acquired Katana. Map ----- +----------------------------------------------------+ | #?????????## #####??# #### | | #?????????# #??# # | | #?????????# #??# # | | ########### " " #### # | | +[[*%!!![ + "R" # # " # | | ###!####### """ # # T # | | ###?#%#?????# =+% + " # | | #???#=############## # # | | #???# # #????## ###### | | ##### # """ #????# #???? | | + "Y" #????# !#???? | | ####### #????# #???? | | #?????# #????# #???? | | #?????# ! #????## ##???? | | #?????########?????# ###### | | #??????????????????# # # | | ???????????????????# # # | | ???????????????????# # # | | ???????????????????# # # | | ???????????????????# # !!!# | | ???????????????????# + !! # | | ??????????????????## # ! # | | ??????????????????+ # ] # | | ??????????????????##+####### | | ??????????????????# [ #? | | ??????????????????# ] @#? | | ??????????????????# #? | | ??????????????????# """ #? | | ??????????????????# """ !#? | | ??????????????????+ """ #? | | ??????????????????#########? | | ???????????????????????????? | | ???????????????????????????? | | ???????????????????????????? | | ???????????????????????????? | | ???????????????????????????? | | ???????????????????????????? | | ???????????????????????????? | | ???????????????????????????? | | ???????????????????????????? | | ???????????????????????????? | | ???????????????????????????? | | ???????????????????????????? | | ???????????????????????????? | | ???????????????????????????? | | ???????????????????????????? | | ???????????????????????????? | | ???????????????????????????? | | ???????????????????????????? | | ???????????????????????????? | +----------------------------------------------------+ Best States ------------- Heat Dissipation 45 Energy Generation 12 Energy Capacity 265 Matter Stores 300 Matter Capacity 300 Sight Range 16 Terrain Scan Density 10 Armor Coverage 450 Utility Shielding 33 Evasion (%) 40 Recoil Reduction 3 Item Schematics ----------------- None Robot Schematics ------------------ None Fabricated ------------ Nothing Alien Tech Used ----------------- None Achievements -------------- None Challenges ------------ None Game ------ Seed SuspensionHackingMapper Manual? 0 Play Time 00:16:05 Cumulative 181.5 hours Start 2020.12.25 @ 12:51:35 End 2020.12.29 @ 17:41:48 Sessions 7 Manual Loads 0 Difficulty Rogue Special Mode None Game No. 230 Rogue 187 Adventurer 3 Explorer 40 Win Type - Total 4 Types 3/1/0/0/0/0/0/0/0 Lore% 54 Gallery% 78 Achievement% 58 Wizard Run 0 Options --------- ASCII 0 Keyboard 0 Movement Numpad Keybinds 0 Fullscreen 2 Font 18/SmallcapsGlow Map View 76x50 Tactical HUD 1 Map Filters NONE Filters NONE Steam 1 RUN: 765c21fb-f9f5-4c3b-afe7-02a6581ff43b